{"text_format":"2","workbook":"xlsx","n_sheets":1,"sheets":["Precos"],"not_rendered":{"charts":0,"images":1,"macros":0,"external_links":0,"defined_names":1,"comments":0,"pivot_tables":0},"unopened":[],"bounds":{"document_bytes":16777216,"sheet_cells":100000,"run_cost":"one","rows_first":2000,"rows_last":500,"rows_between":2000,"halvings":0,"cell_chars":16384,"cell_head_chars":4096},"cells_cut":0,"cells_raw":0,"read":"whole","date_system":"1900"}

{"sheet":"Precos","index":0,"n_rows":21,"n_cols":10,"rows_kept":21,"cut":false,"hidden":false,"merged":[[5,0,5,5],[20,0,20,4],[7,0,7,5],[8,0,8,5],[9,0,9,5],[12,0,13,0],[12,1,13,1],[12,2,13,2],[12,3,13,3],[12,4,13,4],[12,5,13,5]]}
[null,"                                MINISTÉRIO DO DESENVOLVIMENTO REGIONAL (MDR)"]
[null,"                                COMPANHIA DO DESENVOLVIMENTO DOS VALES DO SÃO FRANCISCO E DO PARNAÍBA"]
[null,"                                ÁREA DE GESTÃO DOS EMPREENDIMENTOS DE IRRIGAÇÃO (AI)"]
[]
[]
["PLANILHA ORÇAMENTÁRIA"]
[]
["CULTURA DO MARACUJÁ (1 ha) - ESPALDEIRAMENTO"]
[]
["LICITAÇÃO"]
[]
[]
["ITEM","DESCRIÇÃO","UNID.","QUANT.","PREÇO UNITÁRIO (R$)","VALOR TOTAL (R$)"]
[]
[{"$f":"1","v":1},"Estacas (mourões) de eucalipto imunizado (tratado) em autoclave, com certificado de garantia de durabilidade de no mínimo 10 anos do material, diâmetro 12 a 14 cm e comprimento de 2,50m.","unid.",{"$f":"165","v":165},null,{"$f":"D15*E15","v":0},null,null,null,36.58]
[{"$f":"A15+1","v":2},"Estacas (mourões) de eucalipto imunizado (tratado) em autoclave, com certificado de garantia de durabilidade de no mínimo 10 anos do material, diâmetro entre 6 a 8 cm e comprimento de 2,20m.","unid.",{"$f":"542","v":542},null,{"$f":"D16*E16","v":0},null,null,null,34.950000000000003]
[{"$f":"A15+1","v":2},"Arame galvanizado Nº 14 para culturas aéreas (2.10 mm de diâmetro) e carga mínima de ruptura de 500 Kgf","m",{"$f":"3816","v":3816},null,0,null,null,null,12.99]
[{"$f":"A17+1","v":3},"Grampo para cerca polido 1x9 - Bitola (JP x LPP): 19 x 11 -1 Kg - . Quantidade aproximada: 194 unid./kg.","kg",{"$f":"7","v":7},null,0,null,null,null,0.52]
[4,"Prego com cabeça, 19x27, material: aço baixo carbono (Diâmetro: 3,9 mm e comprimento: 62,1 mm). Quantidade aproximada: 155 unid./Kg","kg",{"$f":"9","v":9},null,0,null,null,null,0.65]
[{"$f":"A19+1","v":5},"Montagem e instalação","serviço",{"$f":"1","v":1},null,0,null,null,null,14.31]
["Total",{"$nulls":4},{"$f":"SUM(F15:F20)","v":0},null,null,null,{"$f":"SUM(J15:J20)","v":100}]